bitfinex-derivatives/quotes_ETHF0:USTF0_20250212
["timestamp","ask_amount","ask_price","bid_price","bid_amount"]
[1739333964878,3.2078,2588.3,2587.6,3.2078]
[1739333965771,3.2078,2588.3,2587.6,7.3030035]
[1739333965974,3.2078,2588.3,2587.9,4.0952035]
[1739333966273,3.2078,2588.3,2588.0,0.5975]
[1739333966478,0.5557,2588.6,2588.0,3.8053]
[1739333966679,1.765,2588.5,2588.0,3.8053]
[1739333966875,3.21359587,2588.8,2588.4,3.2078]
[1739333967369,3.21359587,2588.8,2588.5,1.1764]
[1739333967575,3.21359587,2588.8,2588.6,0.5609]
[1739333967777,0.00579587,2588.8,2588.6,0.5609]
[1739333969875,0.00579587,2588.8,2588.7,3.2078]
[1739333970267,0.00579587,2588.8,2588.7,3.62020212]
[1739333970473,0.00579587,2588.8,2588.7,3.2078]
[1739333970678,0.00579587,2588.8,2588.7,9.2078]
[1739333970980,4.9718,2589.6,2588.9,4.0952035]
[1739333971283,4.9718,2589.6,2589.1,3.2078]
[1739333971481,4.9718,2589.6,2588.7,3.2078]
[1739333971781,4.9718,2589.6,2588.8,40.8]
[1739333972075,0.00579587,2589.4,2588.8,40.8]
[1739333972287,0.00579587,2589.4,2589.0,3.2078]
[1739333973287,0.00579587,2589.4,2589.3,3.2078]
[1739333973881,0.00579587,2589.4,2589.2,4.6979035]
[1739333974080,0.00579587,2589.4,2589.3,3.2078]
[1739333974781,0.00579587,2589.4,2589.3,3.7768]
[1739333975576,3.2078,2589.9,2589.3,9.7768]
[1739333975778,3.2078,2589.9,2589.5,4.0952035]
[1739333976276,3.2078,2589.9,2589.6,0.5793]
[1739333976679,3.2078,2589.9,2589.3,3.7768]
[1739333977779,4.3933,2589.9,2589.3,3.2078]
[1739333980581,4.3933,2589.9,2589.2,1.175]
[1739333980778,3.2078,2589.6,2589.2,1.175]
[1739333980977,3.2078,2589.3,2588.9,3.2078]
[1739333982283,3.2078,2589.3,2588.7,0.6125]
[1739333982479,1.187,2589.2,2588.6,0.5959]
[1739333982688,1.762,2589.1,2588.5,3.21359587]
[1739333982875,3.2078,2589.0,2588.5,3.21359587]
[1739333988095,3.98063,2588.6,2587.5,3.2078]
[1739333988288,3.2078,2588.3,2587.5,3.2078]
[1739333988797,3.2078,2588.3,2587.5,44.0078]
[1739333989190,1.766,2588.7,2588.1,3.2078]
[1739333989392,1.1773,2588.9,2588.4,3.2078]
[1739333989594,0.00579587,2588.7,2588.5,3.2078]
[1739333989789,0.00579587,2588.7,2588.2,0.6098]
[1739333990092,0.00579587,2588.7,2588.1,3.2078]
[1739333991291,1.773,2588.6,2588.1,3.2078]
[1739333992191,1.77779587,2588.7,2588.2,0.41355904]
[1739333992394,1.77779587,2588.7,2588.3,0.6059]
[1739333994194,1.77779587,2588.7,2588.1,3.2078]
[1739333995896,3.2078,2588.6,2588.1,3.2078]
[1739333996202,3.2078,2588.6,2587.8,1.1734]
[1739333996495,3.2078,2588.6,2587.9,0.41383001]
[1739333996798,3.2078,2588.6,2587.8,1.1734]
[1739333997000,3.2078,2588.6,2587.9,0.41382971]
[1739333997194,3.2078,2588.6,2588.0,0.41376114]
[1739333997397,3.2078,2588.6,2588.0,3.2078]
[1739333998285,1.77779587,2588.7,2588.0,3.2078]
[1739333998486,0.00579587,2588.7,2588.1,0.41369449]
[1739333998693,0.00579587,2588.7,2588.2,0.41368059]
[1739333998893,0.00579587,2588.7,2588.0,3.2078]
[1739333999088,0.00579587,2588.7,2588.1,0.41368809]
[1739333999293,0.00579587,2588.7,2588.0,3.2078]
[1739333999499,0.00579587,2588.7,2588.1,0.41365094]
[1739333999694,0.00579587,2588.7,2588.0,3.2078]
[1739333999994,0.00579587,2588.7,2588.3,3.2078]
[1739334000195,0.00579587,2588.7,2588.4,0.5796]
[1739334000391,0.00579587,2588.7,2588.6,3.2078]
[1739334001097,1.772,2589.3,2588.6,7.71656505]
[1739334001397,1.772,2589.3,2588.9,3.2078]
[1739334001595,5.8672035,2589.3,2588.4,1.7322]
[1739334001787,3.2078,2589.2,2588.5,0.41355971]
[1739334001994,5.8672035,2589.3,2588.4,0.5796]
[1739334001995,4.0952035,2589.0,2588.4,0.5796]
[1739334002299,3.2078,2588.8,2588.1,3.2078]
[1739334002500,2.3579,2588.7,2588.1,3.2078]
[1739334004706,3.2078,2588.4,2587.9,0.5678]
[1739334004903,0.5763,2588.3,2587.9,0.5678]
[1739334005398,0.5763,2588.3,2587.8,44.0078]
[1739334005600,0.5763,2588.3,2587.8,3.2078]
[1739334006104,0.5763,2588.3,2587.6,0.00579587]
[1739334006105,3.2078,2588.0,2587.6,0.00579587]
[1739334006406,0.5983,2587.9,2587.6,0.00579587]
[1739334007401,3.7841,2588.3,2587.7,4.13444904]
[1739334007402,1.772,2588.2,2587.7,4.13444904]
[1739334007706,1.772,2588.2,2587.8,1.00592895]
[1739334007898,1.772,2588.2,2587.9,0.41411118]
[1739334008099,3.2078,2588.3,2587.8,0.5918]
[1739334008406,1.1689,2588.9,2588.2,3.2078]
[1739334008601,1.1689,2588.9,2588.3,0.92126186]
[1739334008807,1.1689,2588.9,2588.4,1.51305892]
[1739334009003,1.1689,2588.9,2588.5,0.41426105]
[1739334009206,1.1689,2588.9,2588.6,0.41440331]
[1739334009408,1.1689,2588.9,2588.5,40.8]
[1739334009707,1.1689,2588.9,2588.6,0.41440634]
[1739334009912,0.00579587,2589.0,2588.7,0.41438711]
[1739334010101,0.00579587,2589.0,2588.5,3.2078]
[1739334010408,0.00579587,2589.0,2588.6,0.92204774]
[1739334010604,0.00579587,2589.0,2588.7,0.41458994]
[1739334010910,0.00579587,2589.0,2588.8,0.4145912]
[1739334011107,0.00579587,2589.0,2588.5,3.2078]
[1739334011303,0.00579587,2589.0,2588.6,0.92238069]
[1739334011509,0.00579587,2589.0,2588.7,0.41473875]
[1739334011706,4.10099937,2589.0,2588.4,0.5918]
[1739334012008,4.10099937,2589.0,2588.5,0.41479062]
[1739334012307,4.10099937,2589.0,2588.2,3.2078]
[1739334012308,0.6,2588.9,2588.2,3.2078]
[1739334012511,0.6,2588.9,2588.3,0.9228042]
[1739334012512,7.3030035,2588.7,2588.3,0.9228042]
[1739334012702,1.775,2588.6,2587.9,3.8132]
[1739334013008,1.775,2588.6,2588.0,0.92284298]
[1739334013199,1.775,2588.6,2588.1,0.414975]
[1739334013510,1.775,2588.6,2587.9,3.2078]
[1739334013712,1.775,2588.6,2588.0,0.50791954]
[1739334014013,1.775,2588.6,2588.1,0.5079084]
[1739334014204,1.775,2588.6,2587.9,3.2078]
[1739334014403,1.775,2588.6,2588.0,0.50793541]
[1739334014600,1.775,2588.6,2588.1,0.50793541]
[1739334014799,1.775,2588.6,2587.9,3.2078]
[1739334015005,1.775,2588.6,2588.0,0.50794497]
[1739334015208,1.775,2588.6,2588.1,0.50794497]
[1739334015404,1.775,2588.6,2587.8,3.8193]
[1739334015610,1.775,2588.6,2587.9,1.32096193]
[1739334015811,1.775,2588.6,2588.0,0.50805784]
[1739334016011,7.3030035,2588.4,2587.8,3.8193]
[1739334016211,7.3030035,2588.4,2587.8,3.2078]
[1739334016514,0.6008,2588.3,2587.8,3.2078]
[1739334017008,0.5906,2588.2,2587.8,3.2078]
[1739334017810,0.5906,2588.2,2587.6,0.57719587]
[1739334018012,0.5906,2588.2,2587.7,0.50807861]
[1739334018207,0.5906,2588.2,2587.8,0.50807861]
[1739334018412,0.5906,2588.2,2587.6,0.57719587]
[1739334018614,0.5906,2588.2,2587.7,0.50804047]
[1739334018813,3.2078,2588.1,2587.6,0.57719587]
[1739334019113,3.2078,2588.1,2587.7,0.50804613]
[1739334019313,3.2078,2588.1,2587.6,0.57719587]
[1739334019508,3.2078,2588.1,2587.6,0.00579587]
[1739334020115,1.769,2588.0,2587.6,0.00579587]
[1739334021921,3.2078,2588.1,2587.6,0.00579587]
[1739334022216,4.9748,2588.1,2587.7,0.50768391]
[1739334022415,4.9748,2588.1,2587.6,0.00579587]
[1739334022619,3.2078,2588.1,2587.7,0.50768413]
[1739334022920,3.2078,2588.1,2587.8,0.602]
[1739334024005,3.2078,2588.1,2587.6,0.00579587]
[1739334025022,7.3030035,2588.1,2587.6,0.00579587]
[1739334027617,3.2078,2587.8,2587.6,0.00579587]
[1739334027925,3.2078,2587.8,2586.9,3.2078]
[1739334027926,4.6884035,2587.7,2586.9,3.2078]
[1739334028114,3.2078,2587.5,2587.0,0.50186274]
[1739334028316,3.2078,2587.5,2586.9,3.2078]
[1739334028518,3.2078,2587.5,2587.0,0.50169465]
[1739334028718,3.2078,2587.5,2586.9,3.2078]
[1739334029016,3.21359587,2587.5,2587.0,0.50749824]
[1739334029223,0.00579587,2587.5,2587.0,40.80579587]
[1739334030123,0.00579587,2587.5,2587.1,0.6121]
[1739334030725,0.00579587,2587.5,2587.4,3.2078]
[1739334031328,0.00579587,2587.5,2587.4,40.8]
[1739334032623,0.00579587,2587.5,2587.4,41.30456974]
[1739334032929,0.00579587,2587.5,2587.4,40.8]
[1739334033129,0.00579587,2587.5,2587.4,44.51238772]
[1739334033325,0.00579587,2587.5,2587.4,3.71238772]
[1739334033829,0.00579587,2587.5,2587.4,3.2078]
[1739334034031,0.00579587,2587.5,2587.4,3.71239592]
[1739334034531,0.00579587,2587.5,2587.4,3.2078]
[1739334035031,0.00579587,2587.5,2587.1,3.8199]
[1739334035228,0.00579587,2587.5,2587.2,0.5046268]
[1739334035430,0.00579587,2587.5,2587.1,3.8199]
[1739334036024,0.00579587,2587.5,2587.2,0.50460827]
[1739334036330,0.00579587,2587.5,2587.1,3.8199]
[1739334036831,3.21359587,2587.5,2587.1,3.2078]
[1739334037223,4.97559587,2587.5,2587.1,3.2078]
[1739334039033,1.76779587,2587.5,2587.1,3.2078]
[1739334041330,0.00579587,2587.5,2587.1,3.2078]
[1739334041530,0.00579587,2587.5,2587.4,3.2078]
[1739334041722,0.00579587,2587.5,2587.4,3.70717487]
[1739334041927,0.00579587,2587.5,2587.4,44.50712132]
[1739334042634,0.00579587,2587.5,2587.4,41.29932132]
[1739334043234,0.00579587,2587.5,2587.4,0.49932132]
[1739334043533,3.2078,2588.4,2587.4,9.70712132]
[1739334043839,3.8193133,2588.9,2587.9,3.2078]
[1739334044134,3.2062133,2588.6,2588.0,0.49957041]
[1739334044431,3.2062133,2588.6,2587.9,3.2078]
[1739334044631,2.35069587,2588.5,2588.0,0.49947987]
[1739334044831,2.35069587,2588.5,2587.9,3.2078]
[1739334045128,2.35069587,2588.5,2588.0,0.49948514]
[1739334045330,2.35069587,2588.5,2587.9,3.2078]
[1739334046438,3.2078,2588.3,2587.9,3.2078]
[1739334047027,2.35069587,2588.5,2587.9,3.2078]
[1739334047534,1.764,2588.4,2588.0,0.49933692]
[1739334047733,1.764,2588.4,2587.9,3.2078]
[1739334048133,0.5728,2588.3,2587.9,3.2078]
[1739334048537,0.5728,2588.3,2587.6,3.7953]
[1739334048731,0.5728,2588.3,2587.7,0.49928316]
[1739334048732,4.67524417,2588.3,2587.7,0.49928316]
[1739334048935,4.67524417,2588.3,2587.6,3.2078]
[1739334049136,7.88304417,2588.3,2587.5,0.613]
[1739334050941,3.2078,2588.0,2587.5,0.613]
[1739334051143,0.5895,2587.9,2587.2,4.3809]
[1739334051439,0.5895,2587.9,2587.3,0.49931902]
[1739334051440,1.761,2587.8,2587.3,0.49931902]
[1739334051634,1.761,2587.8,2587.2,4.3809]
[1739334051827,3.2078,2587.7,2587.3,0.49932423]
[1739334052037,3.7911,2587.7,2587.2,3.2078]
[1739334052237,7.89354417,2587.7,2587.2,3.2078]
[1739334054539,7.89354417,2587.7,2587.0,0.00579587]
[1739334055140,3.7911,2587.7,2587.2,3.2078]
[1739334055442,0.5895,2587.9,2587.2,3.2078]
[1739334055443,0.5895,2587.9,2587.3,1.65130176]
[1739334055642,0.5895,2587.9,2587.4,41.29920176]
[1739334055940,0.5895,2587.9,2587.4,40.8]
[1739334056945,4.9688,2588.0,2587.5,3.70698021]
[1739334057249,1.761,2588.0,2587.6,0.49918021]
[1739334057456,1.761,2588.0,2587.7,0.49918021]
[1739334057743,1.761,2588.0,2587.5,3.2078]
[1739334057940,1.761,2588.0,2587.6,0.499133]
[1739334058141,1.761,2588.0,2587.7,0.49912272]
[1739334058348,1.761,2588.0,2587.5,3.2078]
[1739334058547,1.761,2588.0,2587.6,0.4991295]
[1739334058743,1.761,2588.0,2587.7,0.4991295]
[1739334058950,1.761,2588.0,2587.5,3.2078]
[1739334059450,1.761,2588.0,2587.6,0.49919272]
[1739334059643,1.761,2588.0,2587.5,3.2078]
[1739334060039,1.761,2588.0,2587.6,0.49919044]
[1739334060241,1.761,2588.0,2587.5,3.2078]
[1739334060444,1.761,2588.0,2587.6,0.49919062]
[1739334060646,1.761,2588.0,2587.7,0.49919062]
[1739334060941,0.5847,2588.2,2587.8,0.49916229]
[1739334061142,0.00579587,2588.5,2588.1,3.2078]
[1739334061351,0.00579587,2588.5,2588.4,3.2078]
[1739334061545,0.00579587,2588.5,2588.4,3.70688214]
[1739334061746,0.00579587,2588.5,2588.4,3.70686627]
[1739334062345,0.00579587,2588.5,2588.4,9.70655873]
[1739334062649,0.6076,2589.2,2588.4,9.70655873]
[1739334062851,0.6076,2589.2,2588.5,0.49875873]
[1739334063052,0.6076,2589.2,2588.6,0.49875873]
[1739334063246,0.6076,2589.2,2588.4,3.2078]
[1739334063448,0.6076,2589.2,2588.5,0.49834468]
[1739334063646,0.6076,2589.2,2588.7,3.2078]
[1739334063849,0.00579587,2589.1,2588.8,1.1888]
[1739334064452,0.00579587,2589.1,2588.8,1.7597]
[1739334064649,0.00579587,2589.1,2589.0,3.2078]
[1739334066149,0.00579587,2589.1,2588.8,1.1888]
[1739334067152,0.00579587,2589.1,2589.0,3.2078]
[1739334068754,4.10244417,2589.8,2589.0,3.2078]
[1739334068755,3.2078,2590.0,2589.0,9.2078]
[1739334068954,3.2078,2590.0,2589.4,3.2078]
[1739334069152,3.2078,2590.0,2589.5,0.5862]
[1739334069749,3.2078,2590.0,2589.6,0.5896]
[1739334069950,0.00579587,2590.0,2589.7,3.2078]
[1739334070849,0.00579587,2590.0,2589.7,3.7676]
[1739334072253,0.6048,2590.6,2589.8,4.10244417]
[1739334072448,3.2078,2590.7,2590.0,3.2078]
[1739334072647,3.2078,2590.7,2590.1,0.5675]
[1739334073149,3.2078,2590.7,2590.2,0.5825]
[1739334073353,3.2078,2590.7,2590.3,0.5598]
[1739334073555,3.21359587,2590.7,2590.3,3.7676]
[1739334075762,0.00579587,2590.7,2590.6,3.2078]
[1739334075956,3.2078,2591.3,2590.6,3.2078]
[1739334076156,3.2078,2591.6,2590.9,7.31024417]
[1739334076355,3.2078,2591.6,2591.0,41.3896]
[1739334077160,3.21158843,2591.6,2591.0,41.3896]
[1739334077761,0.00378843,2591.6,2591.5,3.2078]
[1739334080068,0.00378843,2591.6,2591.0,0.5896]
[1739334080263,0.60028843,2591.6,2590.9,3.2078]
[1739334080464,3.2078,2591.5,2590.9,3.2078]
[1739334081163,3.2078,2591.5,2590.9,7.31024417]
[1739334082466,3.2078,2591.5,2590.9,3.2078]
[1739334083661,1.764,2591.4,2590.6,3.2078]
[1739334083861,3.2078,2591.2,2590.6,3.2078]
[1739334084664,0.5543,2591.3,2590.6,3.2078]
[1739334084867,3.2078,2591.2,2590.6,3.2078]
[1739334085254,4.10244417,2591.1,2590.2,3.21359587]
[1739334085460,3.2078,2590.9,2590.2,3.21359587]
[1739334088865,3.7787,2590.9,2590.2,3.21359587]
[1739334090666,3.2078,2590.9,2590.2,3.21359587]
[1739334091265,3.2078,2590.5,2590.2,0.00579587]
[1739334091461,1.1745,2590.4,2590.2,0.00579587]
[1739334101972,3.2078,2590.5,2590.2,0.00579587]
[1739334102181,1.757,2590.7,2590.2,3.21359587]
[1739334102182,2.3628,2590.7,2590.2,3.21359587]
[1739334102379,3.2078,2590.9,2590.5,3.2078]
[1739334102572,3.2078,2590.9,2590.6,0.49905039]
[1739334102875,3.2078,2590.9,2590.5,3.2078]
[1739334103278,0.6058,2590.8,2590.5,3.2078]
[1739334103973,3.80452417,2590.8,2590.2,0.00579587]
[1739334104182,4.41692417,2590.8,2590.2,0.00579587]
[1739334104575,4.41692417,2590.8,2590.3,0.49907355]
[1739334104773,4.41692417,2590.8,2590.2,0.00579587]
[1739334104975,4.41692417,2590.8,2590.3,0.4990631]
[1739334105176,0.6058,2590.8,2590.4,0.4990485]
[1739334105376,3.82,2591.0,2590.5,0.4990485]
[1739334105571,3.82,2591.0,2590.6,0.4990485]
[1739334105772,3.82,2591.0,2590.5,0.5666]
[1739334106075,3.82,2591.0,2590.6,0.49901659]
[1739334106275,3.82,2591.0,2590.5,0.5666]
[1739334106475,3.82,2591.0,2590.6,0.4990607]
[1739334106783,3.82,2591.0,2590.5,0.5666]
[1739334106979,0.5934,2590.9,2590.5,0.5666]
[1739334107186,0.5934,2590.9,2590.4,3.761]
[1739334107483,0.5934,2590.9,2590.5,0.49915158]
[1739334107679,0.5934,2590.9,2590.2,0.00579587]
[1739334107875,0.5934,2590.9,2590.3,0.49916366]
[1739334108182,0.5934,2590.9,2590.4,0.49945172]
[1739334108380,0.5934,2590.9,2590.2,0.56929587]
[1739334108580,3.2078,2590.7,2590.2,0.00579587]
[1739334108877,1.763,2590.6,2590.2,0.00579587]
[1739334109382,0.6003,2590.5,2590.2,0.00579587]
[1739334109979,3.79902417,2590.5,2590.2,0.00579587]
[1739334110184,3.2078,2590.4,2590.2,0.00579587]
[1739334110379,0.606,2590.3,2590.2,0.00579587]
[1739334111980,6.606,2590.3,2589.4,0.5729]
[1739334112282,0.5717,2590.2,2589.5,0.50010387]
[1739334112482,3.8138,2590.3,2589.6,0.50010387]
[1739334112683,3.8138,2590.3,2589.7,0.50022604]
[1739334112877,3.8138,2590.3,2589.5,1.1818]
[1739334113079,3.8138,2590.3,2589.6,1.10349539]
[1739334113285,0.00579587,2590.2,2589.7,0.49199539]
[1739334113481,0.00579587,2590.2,2589.6,0.61729587]
[1739334113789,0.00579587,2590.2,2589.7,3.6999489]
[1739334114078,0.00579587,2590.2,2589.8,4.58861373]
[1739334114285,0.00579587,2590.2,2589.9,0.4921489]
[1739334114482,0.00579587,2590.2,2590.0,0.4921489]
[1739334114786,0.00579587,2590.2,2590.1,0.49217036]
[1739334114983,0.00579587,2590.2,2590.1,1.68857036]
[1739334115385,0.00579587,2590.2,2590.1,42.48857036]
[1739334116784,0.00579587,2590.2,2590.1,42.48864648]
[1739334116983,0.00579587,2590.2,2590.1,40.8]
[1739334117178,0.00579587,2590.2,2590.1,41.29224441]
[1739334118892,0.00579587,2590.2,2590.1,41.29226918]
[1739334119390,0.00579587,2590.2,2590.1,41.29229341]
[1739334119789,0.00579587,2590.2,2590.1,0.49229341]
[1739334120189,0.00579587,2590.2,2590.1,41.29229341]
[1739334121595,3.2078,2590.8,2590.1,51.38875824]
[1739334121795,3.2078,2590.8,2590.3,3.2078]
[1739334122095,3.2078,2590.8,2590.4,0.49229341]
[1739334122287,3.2078,2590.8,2590.3,3.2078]
[1739334122487,3.2078,2590.8,2590.4,0.4922295]
[1739334122689,3.21158843,2590.8,2590.3,3.2078]
[1739334122888,3.21158843,2590.8,2590.4,0.49220165]
[1739334123196,3.21158843,2590.8,2590.2,0.5855]
[1739334123392,3.21158843,2590.8,2590.3,0.49217274]
[1739334123594,3.21158843,2590.8,2590.2,3.7933]
[1739334123789,3.21158843,2590.8,2590.3,0.49220508]
[1739334123990,3.21158843,2590.8,2590.2,3.7933]
[1739334124192,3.21158843,2590.8,2590.3,0.49219589]
[1739334124496,3.21158843,2590.8,2590.2,3.7933]
[1739334124692,3.21158843,2590.8,2590.3,0.49217657]
[1739334124888,3.21158843,2590.8,2590.4,0.4921712]
[1739334125201,3.21158843,2590.8,2590.2,3.7933]
[1739334125498,3.21158843,2590.8,2590.3,0.49217493]
[1739334125801,1.75878843,2590.8,2590.2,3.7933]
[1739334126000,1.75878843,2590.8,2590.3,0.49220349]
[1739334126198,1.75878843,2590.8,2590.2,3.2078]
[1739334126497,3.2078,2590.6,2589.9,44.0078]
[1739334126696,0.5892,2590.5,2590.0,0.4922398]
[1739334126892,0.5892,2590.5,2589.9,44.0078]
[1739334127098,0.5759,2590.4,2589.9,44.0078]
[1739334127497,3.2078,2590.3,2589.6,3.81389587]
[1739334127796,1.755,2590.2,2589.6,3.81389587]
[1739334127994,1.755,2590.2,2589.7,41.292301]
[1739334127995,2.3513,2590.2,2589.7,41.292301]
[1739334128200,2.3513,2590.2,2589.7,40.8]
[1739334128504,2.3513,2590.2,2589.6,3.21359587]
[1739334128800,3.2078,2589.7,2589.6,0.00579587]
[1739334129002,3.2078,2590.0,2589.6,0.00579587]
[1739334129202,0.56,2589.9,2589.6,0.00579587]
[1739334129395,1.1126,2589.9,2589.6,0.00579587]
[1739334129998,3.2078,2589.7,2588.8,3.2078]
[1739334130291,3.2078,2589.3,2588.5,3.7838]
[1739334130491,1.1126,2589.2,2588.6,40.8]
[1739334130694,1.1126,2589.2,2588.8,3.2078]
[1739334131000,1.1126,2589.2,2588.6,41.389]
[1739334131201,1.1126,2589.2,2588.7,0.00579587]
[1739334131900,1.1126,2589.2,2588.8,3.2078]
[1739334132198,0.00579587,2589.3,2588.8,3.2078]
[1739334132589,0.00579587,2589.3,2588.9,0.49099273]
[1739334132797,0.00579587,2589.3,2588.8,3.2078]
[1739334132996,0.00579587,2589.3,2588.9,0.49099316]
[1739334133202,0.00579587,2589.3,2588.8,3.2078]
[1739334133405,0.00579587,2589.3,2588.9,0.49097379]
[1739334133597,0.00579587,2589.3,2588.8,3.2078]
[1739334133900,0.00579587,2589.3,2589.1,3.2078]
[1739334134096,0.00579587,2589.3,2589.2,1.64857034]
[1739334134505,3.2078,2589.6,2589.2,7.64853089]
[1739334134806,1.756,2589.9,2589.4,3.2078]
[1739334135599,6.41043973,2589.8,2589.4,3.2078]
[1739334135903,7.00923973,2589.8,2589.4,3.2078]
[1739334136494,3.2078,2589.5,2588.8,3.2078]
[1739334136798,0.586,2589.4,2588.8,3.2078]
[1739334137198,0.5988,2589.3,2588.8,3.2078]
[1739334137995,0.586,2589.4,2588.8,3.2078]
[1739334138700,0.586,2589.4,2588.9,40.8]
[1739334138900,7.91253581,2589.8,2588.9,40.8]
[1739334139106,8.49523581,2589.8,2589.0,0.5769]
[1739334140102,7.30733581,2589.5,2588.8,3.2078]
[1739334140602,7.30733581,2589.5,2588.8,44.0078]
[1739334140805,9.10193581,2589.8,2588.8,44.0078]
[1739334140999,9.10193581,2589.8,2588.9,0.577]
[1739334141202,8.49523581,2589.8,2588.9,0.577]
[1739334141606,4.3957,2589.8,2589.1,3.2078]
[1739334141807,6.1627,2589.8,2589.1,3.2078]
[1739334142011,6.1627,2589.8,2589.2,0.6075]
[1739334142206,6.1627,2589.8,2589.3,0.569]
[1739334142412,10.26223581,2589.8,2589.3,0.569]
[1739334142607,10.26223581,2589.8,2589.1,3.2078]
[1739334142808,7.30733581,2589.5,2588.8,44.0078]
[1739334143113,7.30733581,2589.5,2588.8,3.2078]
[1739334144499,3.2078,2589.2,2588.8,3.2078]
[1739334144806,1.1568,2589.1,2588.8,3.2078]
[1739334147503,1.766,2589.5,2588.8,3.2078]
[1739334147703,1.766,2589.5,2588.9,0.5948]
[1739334148805,3.2078,2589.4,2588.9,0.5948]
[1739334149809,3.2078,2589.4,2588.8,3.2078]
[1739334150015,4.09953581,2589.2,2588.8,3.2078]
[1739334150214,0.5744,2589.1,2588.8,3.2078]
[1739334150414,1.1454,2589.1,2588.8,3.2078]
[1739334154414,1.763,2589.3,2588.8,3.2078]
[1739334154613,1.763,2589.3,2588.9,0.5695]
[1739334154813,1.763,2589.3,2589.0,40.8]
[1739334155710,1.763,2589.3,2588.9,0.5695]
[1739334156123,1.763,2589.3,2588.9,41.3695]
[1739334157011,1.763,2589.3,2588.9,0.5695]
[1739334158220,1.763,2589.3,2589.0,0.42664558]
[1739334158416,1.763,2589.3,2589.1,0.42664558]
[1739334158613,1.763,2589.3,2588.8,3.2078]
[1739334158809,1.763,2589.3,2588.9,1.1096449]
[1739334159015,1.763,2589.3,2589.0,1.10964712]
[1739334159218,1.763,2589.3,2589.1,0.42678206]
[1739334159518,1.763,2589.3,2588.8,3.2078]
[1739334159519,1.763,2589.3,2589.2,0.42677128]
[1739334160717,3.7926,2589.4,2589.2,0.42677128]
[1739334160914,3.2078,2589.4,2589.3,1.10961003]
[1739334161319,3.2078,2589.4,2589.3,0.4928926]
[1739334161514,0.5892,2589.6,2589.3,0.4928926]
[1739334161721,0.5892,2589.6,2589.1,3.2078]
[1739334161921,0.5892,2589.6,2589.2,1.06644446]
[1739334162220,0.5892,2589.6,2589.3,0.49284446]
[1739334162423,0.5892,2589.6,2589.2,1.1498]
[1739334162615,0.5892,2589.6,2589.3,0.49279544]
[1739334162819,6.19058843,2589.9,2589.4,3.2078]
[1739334163115,3.21158843,2589.9,2589.5,0.4927721]
[1739334163319,3.21158843,2589.9,2589.4,3.2078]
[1739334163621,0.00378843,2589.9,2589.5,0.49264803]
[1739334163822,0.00378843,2589.9,2589.4,3.2078]
[1739334164017,0.00378843,2589.9,2589.5,41.29264848]
[1739334164321,0.00378843,2589.9,2589.6,0.49260766]
[1739334164622,0.00378843,2589.9,2589.5,40.8]
[1739334166417,0.00378843,2589.9,2589.6,0.49252989]
[1739334166724,0.00378843,2589.9,2589.4,3.2078]
[1739334166918,0.00378843,2589.9,2589.5,0.4925246]
[1739334167119,0.00378843,2589.9,2589.6,0.4925246]
[1739334167318,0.00378843,2589.9,2589.7,3.70027152]
[1739334167622,0.00378843,2589.9,2589.8,1.1945]
[1739334172436,3.2078,2590.4,2589.8,4.88852235]
[1739334172638,3.2078,2590.4,2589.8,4.3967002]
[1739334173932,3.2078,2590.4,2589.8,1.1945]
[1739334176834,3.2078,2590.4,2589.8,0.6082]
[1739334177040,3.2022002,2590.3,2589.8,0.6082]
[1739334177341,3.2022002,2590.3,2589.4,44.5766]
[1739334177637,3.2022002,2590.3,2589.5,4.26914112]
[1739334177834,3.2022002,2590.3,2589.6,0.49142506]
[1739334178140,3.2022002,2590.3,2589.5,3.7777002]
[1739334178334,3.2022002,2590.3,2589.6,0.49142768]
[1739334178528,3.2022002,2590.3,2589.5,3.7777002]
[1739334178737,3.2078,2590.4,2589.7,3.2078]
[1739334179240,3.2078,2590.4,2589.8,3.69357938]
[1739334179437,3.2078,2590.4,2589.9,0.5982]
[1739334179641,3.2078,2590.4,2589.9,1.167]
[1739334183049,2.8885,2590.6,2590.0,3.2078]
[1739334183342,1.1325,2590.6,2590.1,0.5941]
[1739334184451,0.5599,2590.6,2590.3,3.2078]
[1739334185741,0.5726,2590.9,2590.3,3.2078]
[1739334185938,0.592,2591.1,2590.6,3.2078]
[1739334186144,3.2078,2591.4,2590.9,3.2078]
[1739334186339,3.2078,2591.4,2590.9,44.0078]
[1739334187244,3.2078,2591.4,2591.0,3.2022002]
[1739334187442,3.2078,2591.4,2591.0,3.7604002]
[1739334187644,3.2078,2591.4,2591.1,0.49089085]
[1739334187949,3.2078,2591.4,2591.0,3.7604002]
[1739334188539,3.2078,2591.4,2591.0,0.5582]
[1739334188740,3.2078,2591.4,2590.9,44.0078]
[1739334189243,3.2078,2591.4,2591.0,3.2022002]
[1739334189951,1.755,2591.8,2591.2,3.2078]
[1739334190147,1.755,2591.8,2591.3,0.5938]
[1739334190447,1.755,2591.8,2591.3,1.195]
[1739334191348,4.9572002,2591.8,2591.3,1.195]
[1739334191549,4.9572002,2591.8,2591.3,0.5938]
[1739334191754,3.2022002,2591.8,2591.3,0.5938]
[1739334192345,3.2022002,2591.8,2590.9,3.2078]
[1739334192346,3.2022002,2591.5,2590.9,3.2078]
[1739334192546,0.6023,2591.4,2590.9,3.2078]
[1739334193946,0.6023,2591.4,2591.3,3.2078]
[1739334194148,0.6023,2591.4,2591.0,3.2078]
[1739334194348,0.5862,2591.3,2591.0,3.2078]
[1739334194651,0.5862,2591.3,2590.7,3.2078]
[1739334194951,0.5862,2591.3,2590.6,0.00579587]
[1739334195151,0.5862,2591.3,2590.6,40.80579587]
[1739334195649,3.2078,2591.0,2590.6,0.00579587]
[1739334195854,0.5954,2590.9,2590.6,0.00579587]
[1739334200056,3.794,2591.3,2590.6,0.00579587]
[1739334200360,4.3603,2591.3,2590.6,0.00579587]
[1739334200954,3.2022002,2591.2,2590.6,0.00579587]